Cogmind - Beta 14 @@@ ROGUE MODE // 2024.11.21 @ 15:16:44 Player: TheTravelingGuy Result: Destroyed by G-34 Mercenary with Small Laser Performance ------------- Evolutions (0) 0 Regions Visited (1) 200 Robots Destroyed (12) 60 Value Destroyed (434) 434 Prototype IDs (2) 40 Alien Tech Used (0) 0 Bonus (0) 0 TOTAL SCORE: 734 Bonus ------- None Cogmind --------- Core Integrity 0/250 Matter 300/300 Energy 50/100 System Corruption 1% Temperature Hot (236) Movement Core (250) Ox4 Location -10/Materials Parts ------- > --- POWER (1) -------- (None) > --- PROPULSION (2) --- (None) > --- UTILITY (2) ------ Medium Storage Unit Structural Scanner > --- WEAPON (2) ------- EM Pulse Gun > --- INVENTORY (10) --- Terrain Scanner EM Pulse Gun Medium Laser Peak State ------------ > --- POWER ------------ Ion Engine > --- PROPULSION ------- Light Treads Light Treads > --- UTILITY ---------- Small Storage Unit Seismic Detector > --- WEAPON ----------- Light Assault Rifle Light Assault Rifle > --- INVENTORY -------- Light Ion Engine Light Treads Medium Laser [Rating: 7] Favorites ----------- Power Light Ion Engine Engine Light Ion Engine Propulsion Light Treads Treads Light Treads Utility Seismic Detector Device Seismic Detector Storage Medium Storage Unit Weapon Light Assault Rifle Energy Gun EM Pulse Gun Ballistic Gun Light Assault Rifle Build | -11 -10 ------- Run | Yrd Mat Slots Evolved . | . . Power . | . . Propulsion . | . . Utility . | . . Weapon . | . . Parts Attached 14 | 5 9 Power 3 | 1 2 Engine 3 | 1 2 Core . | . . Reactor . | . . Propulsion 3 | 2 1 Treads 3 | 2 1 Leg . | . . Wheel . | . . Hover . | . . Flight . | . . Utility 4 | . 4 Device 2 | . 2 Storage 2 | . 2 Processor . | . . Hackware . | . . Protection . | . . Artifact . | . . Weapon 4 | 2 2 Energy Gun 2 | . 2 Energy Cannon . | . . Ballistic Gun 2 | 2 . Ballistic Cannon . | . . Launcher . | . . Special Weapon . | . . Impact Weapon . | . . Slashing Weapon . | . . Piercing Weapon . | . . Special Melee Weapon . | . . Unidentified Prototypes . | . . Parts Lost 9 | . 9 Power 2 | . 2 Propulsion 3 | . 3 Utility 1 | . 1 Weapon 3 | . 3 Highest Loss Streak 4 | . 4 To Critical Strikes . | . . Average Slot Usage (%) 86 | . 86 Engine 13 | . 13 Treads 26 | . 26 Device 10 | . 10 Storage 8 | . 8 Energy Gun 3 | . 3 Ballistic Gun 23 | . 23 Peak Build Rating 7 | 5 7 Average Rating 5 | 3 6 On Entrance 2 | . 5 Naked Turns . | . . Heaviest Build 18 | 5 18 Greatest Support 40 | 40 40 Greatest Overweight (x) . | . . Average Overweight (x) . | . . Largest Inventory Capacity 10 | 5 10 Average Capacity 7 | 5 7 Most Carried 7 | 2 7 Average Carried 3 | . 3 Final Capacity 10 | 5 10 Final Carried 3 | . 3 Class Distribution -------------------- 100% | Mutant Dominant Class ---------------- Mutant | -10/Materials Resources | -11 -10 ----------- Run | Yrd Mat Matter Collected 453 | 189 264 Remotely . | . . Salvage Created 517 | . 517 Parts 23 | . 23 Haulers Intercepted . | . . Recyclers Shooed 1 | . 1 Parts Field Recycled . | . . Retrieved Matter . | . . Parts Self-Destructed . | . . Prevented . | . . Kills | -11 -10 ------- Run | Yrd Mat Combat Hostiles Destroyed 12 | . 12 Guns 11 | . 11 Classes Destroyed 1 | . 1 Grunt 12 | . 12 Best Kill Streak 3 | . 3 Combat Bots Only 3 | . 3 Max Kills in Single Turn 1 | . 1 Gunslinging . | . . Exploded . | . . Melee . | . . Uniques/NPCs Destroyed . | . . Combat | -11 -10 -------- Run | Yrd Mat Hostile Shots Fired 137 | . 137 Missed 39 | . 39 Damage Taken 1159 | . 1159 Core 252 | . 252 Absorbed by Shields . | . . Core Remaining (%) 100 | 100 . Volleys Fired 76 | . 76 Largest 2 | . 2 Hottest 80 | . 80 Shots Fired 150 | . 150 Gun 150 | . 150 Cannon . | . . Launcher . | . . Special . | . . Kinetic 120 | . 120 Thermal . | . . Explosive . | . . Electromagnetic 30 | . 30 Robot Hit Streak 8 | . 8 Robot Miss Streak 4 | . 4 Penetration Max . | . . Secondary Targets 2 | . 2 Max Gunslinging Chain 1 | . 1 Shots Hit Robots 90 | . 90 Core Hits 32 | . 32 Critical Kills . | . . Critical Parts Destroyed . | . . Critical Strikes . | . . Melee Attacks . | . . Impact . | . . Slashing . | . . Piercing . | . . Sneak Attacks . | . . Combat Hostiles . | . . Follow-up Attacks . | . . Damage Inflicted 857 | . 857 Guns 857 | . 857 Cannons . | . . Explosions . | . . Melee . | . . Ramming . | . . Kinetic 577 | . 577 Thermal . | . . Explosive . | . . Electromagnetic 280 | . 280 Impact . | . . Slashing . | . . Piercing . | . . Highest Corruption 1 | . 1 Average Corruption 1 | . 1 Corruption Purged . | . . Corruption Blocked . | . . Effects 5 | . 5 Message Errors 1 | . 1 Matter Fused 1 | . 1 Heat Flow Errors 1 | . 1 Energy Discharges 2 | . 2 Overload Shots . | . . Overflow Damage . | . . Projectiles . | . . Explosions . | . . Melee . | . . Knockbacks . | . . Impact . | . . Kinetic . | . . Secondary . | . . Self-Inflicted Damage . | . . Shots . | . . Rammed . | . . Targets Rammed . | . . Kicked . | . . Crushed . | . . Highest Temperature 401 | . 401 Average Temperature 96 | . 96 Received Heat Transfer 672 | . 672 Effects 1 | . 1 Energy Bleed 1 | . 1 Siege Activations . | . . Robots Corrupted 1 | . 1 Combat Hostiles 1 | . 1 Parts Fried 2 | . 2 Impact Corruptions . | . . Robots Melted . | . . Combat Hostiles . | . . Parts Melted . | . . Heat Transferred . | . . Parts Sabotaged . | . . Parts Stolen . | . . Parts Stripped . | . . Power Chain Reactions . | . . Alert | -11 -10 ------- Run | Yrd Mat Peak Influence 229 | . 229 Initial . | . . Average 80 | . 88 Maximum Alert Level 1 | . 1 Low Security (%) 98 | 100 98 Level 1 1 | . 1 Level 2 . | . . Level 3 . | . . Level 4 . | . . Level 5 . | . . High Security . | . . Max Security . | . . Squads Dispatched 6 | . 6 Investigation 4 | . 4 Extermination . | . . Reinforcement 2 | . 2 Assault . | . . Garrison . | . . Intercept . | . . Searches Triggered . | . . Construction Impeded . | . . Haulers Reinforced . | . . Active Scanning Responses . | . . Cargo Convoy Interrupts . | . . Stealth | -11 -10 --------- Run | Yrd Mat Distress Signals 4 | . 4 Communications Jammed . | . . Distress Signals . | . . Times Spotted 34 | . 34 Peak Tracking Total 9 | . 9 Tactical Retreats 5 | . 5 Traps | -11 -10 ------- Run | Yrd Mat Traps Triggered 2 | . 2 Indirectly . | . . Trap Hack Attempts . | . . Triggered . | . . Disarmed . | . . Reprogrammed . | . . Reused . | . . Traps Extracted . | . . Installed . | . . Triggered . | . . Machines | -11 -10 ---------- Run | Yrd Mat Machines Disabled . | . . Max in Single Turn . | . . Machines Repaired . | . . Machines Dismantled . | . . Machines Sabotaged . | . . Overloaded Fab Kills . | . . Hacking | -11 -10 --------- Run | Yrd Mat Machines Accessed 5 | . 5 Terminals 4 | . 4 Fabricators . | . . Repair Stations . | . . Recycling Units 1 | . 1 Scanalyzers . | . . Garrison Access . | . . Total Hacks 17 | . 17 Successful 11 | . 11 Failed 6 | . 6 Catastrophic . | . . Database Lockouts . | . . Manual . | . . Terminals 14 | . 14 Fabricators . | . . Repair Stations . | . . Recycling Units 3 | . 3 Scanalyzers . | . . Garrison Access . | . . Terminal Hacks 9 | . 9 Prototype ID Bank 1 | . 1 Emergency Access Points 1 | . 1 Locate Traps 3 | . 3 Dispatch Records 1 | . 1 Maintenance Status 1 | . 1 Hauler Manifests 1 | . 1 Zone Layout 1 | . 1 Fabricator Hacks . | . . Repair Station Hacks . | . . Recycling Unit Hacks 2 | . 2 Report Inventory 1 | . 1 Retrieve Matter 1 | . 1 Scanalyzer . | . . Garrison Access Hacks . | . . Unauthorized Hacks . | . . Terminals . | . . Fabricators . | . . Repair Stations . | . . Recycling Units . | . . Scanalyzers . | . . Garrison Access . | . . Data Cores Recovered . | . . Used . | . . Hacking Detections 4 | . 4 Full Trace Events 4 | . 4 Feedback Events . | . . Feedback Blocked . | . . Robot Schematics Acquired . | . . Robots Built . | . . Authchips . | . . Time . | . . Total Robot Build Rating . | . . Part Schematics Acquired . | . . Parts Built . | . . Authchips . | . . Time . | . . Total Part Build Rating . | . . Parts Repaired . | . . Time . | . . Parts Recycled . | . . Recycled Matter . | . . Retrieved Matter . | . . Retrieved Components . | . . Parts Scanalyzed . | . . Part Schematics Acquired . | . . Parts Damaged . | . . Bothacking | -11 -10 ------------ Run | Yrd Mat Used RIF Installer . | . . Robots Hacked . | . . Non-combat . | . . Combat . | . . Robot Hacks Applied . | . . Relay Couplers Released . | . . Fabnet Peak Effective % . | . . Robots Rewired . | . . Allies Hacked . | . . Hacks Repelled . | . . Allies | -11 -10 -------- Run | Yrd Mat Total Allies . | . . Largest Group . | . . Highest-Rated Group . | . . Highest-Rated Ally . | . . Total Orders . | . . Ally Attacks . | . . Total Damage . | . . Kills . | . . Allies Corrupted . | . . Allies Melted . | . . Intel | -11 -10 ------- Run | Yrd Mat Robot Analysis Total . | . . Derelict Logs Recovered . | . . Drone Launches . | . . Drone Recoveries . | . . Exploration | -11 -10 ------------- Run | Yrd Mat Turns Passed 924 | 79 845 Spaces Moved 413 | 37 376 Core 5 | 5 . Treads 408 | 32 376 Legs . | . . Wheels . | . . Hover . | . . Flight . | . . Fastest Speed 50 | 50 160 Average Speed 158 | 145 160 Slowest Speed 160 | 160 160 Overloaded Moves . | . . Propulsion Burnouts . | . . Robots Hopped . | . . Cave-ins Triggered . | . . Exploration Rate (%) 32 | 5 60 Regions Visited 1 Branch Regions . Pre-discovered Areas . | . . Known Exits Taken . | . . Unknown Exits Taken 1 | 1 . Scrap Searched . | . . Spaces Dug . | . . Terrain Destroyed . | . . Melee . | . . Projectile . | . . AOE . | . . Terrain Rammed . | . . Walls Destroyed . | . . Machines Disabled . | . . Actions | -11 -10 --------- Run | Yrd Mat Total 555 | 62 493 Wait 36 | 16 20 Move 412 | 36 376 Hop . | . . Pick Up 16 | 5 11 Fast Attach . | . . Attach 12 | 5 7 Detach . | . . Swap 2 | . 2 Drop 1 | . 1 Fire 76 | . 76 Melee . | . . Ram . | . . Kick . | . . Crush . | . . Escape Stasis . | . . Rewire . | . . Trap . | . . Miscellaneous . | . . Route ------- -11/Scrapyard -10/Materials (discovered 3 exits: [*Mat] / [*Min x2]) History --------- Turn | Location | Event 10 | -11/Scrapyard | Discovered new exit (range 16) 80 | -11/Scrapyard | Entered Materials 101 | -10/Materials | Discovered new exit (range 15) 160 | -10/Materials | Discovered new exit (range 14) 306 | -10/Materials | Build established: Mutant 373 | -10/Materials | Discovered new exit (range 8) 850 | -10/Materials | Lost 4 parts (1n1u2w) 878 | -10/Materials | Core integrity fell below 50% 915 | -10/Materials | Core integrity fell below 20% 925 | -10/Materials | Destroyed by G-34 Mercenary with Small Laser Last Messages --------------- 00811_ Lgt. Treads destroyed. 00819_ Lgt. Assault Rifle destroyed. 00853_ System corrupted: Energy discharge (-42). 00863_ G-34 Mercenary destroyed. 00863_ Switching to secondary target: G-34 Mercenary. 00869_ G-34 Mercenary destroyed. 00881_ Acquired 30 matter. 00884_ System corrupted: Energy discharge (-45). 00898_ G-34 Mercenary misfires. 00903_ System corrupted: Heat flow error (+239). 00904_ Overheating: Energy bleed (-20). 00904_ G-34 Mercenary IFF system glitched. 00904_ Lgt. Ion Engine destroyed. 00907_ G-34 Mercenary system terminally corrupted. 00907_ Sml. Laser fried. 00907_ Aluminum Leg fried. 00911_ EM Pulse Gun destroyed. 00924_ Lgt. Treads destroyed. Map ----- +----------------------------------------------------+ | #####???????# "#????????????????????????????? | | #???????# ""#????????????????????????????? | | "" #???????# !!#????????????????????????????? | | "" #??????## < ""#????????????????????????????? | | "" "#??????## !!#????????????????????????????? | | "" T#??????## ""#????????????????????????????? | | "" "#??????## "#########????????????????????? | | ########## ############????????????????????? | | ###### # # ##????????????????????? | | ?????# """ + / ##????????????????????? | | ?????# """ # # ##????????????????????? | | ?????# """ # # ##????????????????????? | | ?????# # ####/#######????????????????????? | | ?????######### #### #######????????????????????? | | ?????????????# #?## ##?????????????????????????? | | ???????????### #?## ##?????????????????????????? | | ?????????##### #### ########???????????????????? | | ??########### ### ########???????????????????? | | ### ##???????????????????? | | + ##???????????????????? | | # ##???????????????????? | | ??????####+## ####### ##???????????????????? | | ??????## ####### !# ##???????????????????? | | ??????????? #######""" [#% ##???????????????????? | | ?????????????????##"""=[g%[ ##???????????????????? | | ?????????????????##""" =#@% ##???????????????????? | | ?????????????????## ##g###???????????????????? | | ?????????????????##""" ##g###???????????????????? | | ?????????????????##""" ## ##????????????????????? | | ?????????????????##""" ## ##????????????????????? | | ?????????????????## ## ##????????????????????? | | ?????????????????## ## ????????????????????? | | ?????????????????## ## ?????????????????????? | | ?????????????????## + ????????????????????? | | ?????????????????########?###????????????????????? | | ?????????????????########? ????????????????????? | | ?????????????????????????????????????????????????? | | ?????????????????????????????????????????????????? | | ?????????????????????????????????????????????????? | | ?????????????????????????????????????????????????? | | ?????????????????????????????????????????????????? | | | | | | | | | | | | | | | | | | | +----------------------------------------------------+ Best States ------------- Heat Dissipation 25 Energy Generation 10 Energy Capacity 250 Matter Stores 300 Matter Capacity 300 Sight Range 16 Terrain Scan Density 10 Evasion (%) 50 Recoil Reduction 2 Item Schematics ----------------- None Robot Schematics ------------------ None Fabricated ------------ Nothing Alien Tech Used ----------------- None Achievements -------------- Party Time Challenges ------------ None Game ------ Seed SubatomicGlidesysCanceller Manual? 0 Play Time 00:10:21 Cumulative 4.5 hours Start 2024.11.21 @ 14:56:37 End 2024.11.21 @ 15:16:44 Sessions 1 Manual Loads 0 Difficulty Rogue Special Mode None Game No. 6 Rogue 6 Adventurer 0 Explorer 0 Win Type - Total 0 Types 0/0/0/0/0/0/0/0/0 Lore% 7 Gallery% 10 Achievement% 11 Wizard Run 0 Options --------- Layout 1 ASCII 0 Keyboard 0 Movement Mouse Keybinds 0 Fullscreen 2 Font 24/Smallcaps Map View 50x35 Zoom Use 0% Tactical HUD 1 Map Filters NONE Filters NONE Steam 1 RUN: 2d198a13-1d2c-42a8-9093-dc8438cb6e87